Workbook

Sheet Schaltbild
G1: Ersatzschaltbild für Berechnung: "Selektivität eines DC24V Lastkreises" | AD1: Widerstand Leitung 4
AD2: Länge = | AF2: 0 | AG2: m
C3: Netzteil
AE4: =IF(OR($AF$2=0,$AF$6=0),0,0.0178*$AF$2/$AF$6) -> 0 | AF4: Ω
M5: Wählbare Kennlinien: REX12D-T, ESX10-(T), ESS30, ESS31-T, REX22D, ESX60D
E6: + | AC6: Querschnitt = | AF6: 0 | AH6: mm²
Q7: Schutzschalter | BD7: I Last ges = | BE7: =IF(AE4>0,AH20+AN20,AH20) -> 3.8 | BF7: A
J8: Widerstand Leitung 1 | P8: Kennlinie = | R8: 3 | S8: 4 | W8: Widerstand Leitung 2 | AD8: Widerstand Leitung 3 | AJ8: Achtung:
J9: Länge = | L9: 2 | M9: m | S9: 5 | W9: Länge = | Y9: 15 | Z9: m | AD9: Länge = | AF9: 15 | AG9: m | AJ9: Länge = beinhaltet | BD9: R1+Ri+R2= | BE9: =K11+R17+X11 -> 0.21724 | BF9: Ω
B10: Un | C10: 24 | D10: V | AJ10: Hin- und Rückleitung!
K11: =IF(OR($L$9=0,$L$14=0),0,0.0178*$L$9/$L$14) -> 0.01424 | L11: Ω | S11: i > | X11: =IF(OR($Y$9=0,$Y$14=0),0,0.0178*$Y$9/$Y$14) -> 0.178 | Y11: Ω | AE11: =IF(OR($AF$9=0,$AF$14=0),0,0.0178*$AF$9/$AF$14) -> 0.06675 | AF11: Ω
B12: In | C12: 20 | D12: A
B14: Überlast | D14: 1.5 | I14: Querschnitt = | L14: 2.5 | N14: mm2 | V14: Querschnitt = | Y14: 1.5 | AA14: mm2 | AC14: Querschnitt = | AF14: 4 | AH14: mm2 | BD14: R3= | BE14: =AE11 -> 0.06675 | BF14: Ω
B15: Imax | C15: =$C$12*$D$14 -> 30 | D15: A
B16: Gesamtlast für Netzteil | O16: =VLOOKUP(S8,Kennlinien!A2:E56,5) -> 5 | P16: Nennstrom = | S16: 4 | T16: A | U16: =IF(S16<BE7,"Nennstrom kleiner als Laststrom","") ->  | BD16: R4= | BE16: =AE4 -> 0 | BF16: Ω
C17: 16 | D17: A | H17: =IF(C12<C17,"Belastung für Netzteil zu groß!","") ->  | Q17: Ri = | R17: =VLOOKUP(S16,Kennlinien!H2:BA57,O16) -> 0.025 | T17: Ω | U17: Widerstand Kurzschlussschleife | AB17: =K11+R17+X11+AE11 -> 0.28399 | AD17: Ω
B18: theoretischer max. | L18: Früheste magn. Auslösung bei DC | S18: =VLOOKUP(S8,Kennlinien!A1:E56,3) -> 1.35 | T18: x Inenn = | V18: =S18*$S$16 -> 5.4 | W18: A | AF18: Betrachtete | AM18: Betrachtete
B19: Kurzschlußstrom | L19: Sichere magn. Auslösung bei DC | S19: =VLOOKUP(S8,Kennlinien!A1:E56,4) -> 1.8 | T19: x Inenn = | V19: =S19*$S$16 -> 7.2 | W19: A | AF19: Last 1 | AM19: Last 2
C20: =C15-(D29+AN20) -> 17.8 | E20: A | L20: Spannungsabfall bei Last 1 / 2 Nennstrom: | X20: =AA20/C10 -> 0.04496508333 | Z20: = | AA20: =(BE7*BE9)+(AH20*BE14)+(AN20*BE16) -> 1.079162 | AD20: V | AF20: In = | AH20: 3.8 | AI20: A | AM20: In = | AN20: 0 | AO20: A | BD20: Spannungsabfall R1+Ri+R2+R3= | BE20: =(BE7*BE9)+(AH20*BE14) -> 1.079162 | BF20: V
L21: =IF(OR(S16>32,S16<0.1,R17="x"),"Nennstrom Schutzorgan nicht verfügbar!","") -> 
L22: =IF(V19<R27,"Selektivität ist gegeben","Keine Selektivität. Leitungsschutz nicht sichergestellt !") -> Selektivität ist gegeben
L23: =IF(OR(S8=1,S8=4,S8=5,S8=6,S8=11,S8=12),"",IF(R27<V18,"Wahrscheinlicher Spannungseinbruch am Netzteil",IF(R27<V19,"Möglicher Spannungseinbruch am Netzteil",""))) ->  | AF23: Kurzschluss an der
H24: =IF(OR(S8=1,S8=27,S8=30,S8=5,S8=6,S8=31,S8=32,S8=9,S8=10,S8=17,S8=18,),"Flinke Kennlinie: Wahrscheinliche Auslösung beim Einschalten kapazitiver Last !","") ->  | AF24: Last 1 (worst case) | AL24: ULast | AN24: =C10-AA20 -> 22.920838 | AO24: V
B27: Restliche Lastkreise | L27: Max. Kurzschlußstrom = | R27: =IF(C10/AB17<C20,C10/AB17,C20) -> 17.8 | S27: A | T27: =IF($C$10/($AB$17)<C20,"durch Leitungswiderstand begrenzt","durch Netzteil begrenzt") -> durch Netzteil begrenzt | AF27: =IF(C17<BE7,"Teillast größer als Gesamtlast!","") -> 
C28: Gesamtsrom
C29: I = | D29: =$C$17-$BE$7 -> 12.2 | E29: A | J29: Diese Datei dient nur als Planungshilfe!
J30: Für die Strombelastbarkeit, etc. sind die einschlägigen, internationalen gültigen Normen und Vorschriften zu beachten.
L32: =IF(AND(AA33<=AF14,AA33<=Y14,AA33<=AF6)+OR(AND(AA33<=AF14,AA33<=Y14,AF6=0,AN20>=0)),"Leitungsquerschnitt i.O.","Achtung!Leitungsquerschnitt zu klein dimensioniert!") -> Leitungsquerschnitt i.O.
L33: Min. zulässiger Leitungsquerschnitt im geschütztem Lastpfad | AA33: =LOOKUP(S16,Leitungsquerschnitt!B8:C52) -> 0.5 | AC33: mm²
L34: =IF(AA33="x","Leitungsquerschnitt nicht verfügbar!","") -> 
K35: =IF(C10>32,"max. Versorgungsspannung für Schutzorgane ESx überschritten!","") -> 
K37: =IF(C10<18,"min. Versorgungsspannung für Schutzorgane ESx unterschritten!","") -> 

Sheet Kennlinien
B1: Kennlinie | C1: Imin. | D1: Imax. | E1: Kennung | F1: Typ | H1: Kennung | I1: 2 | J1: 3 | K1: 4 | L1: 5 | M1: 6 | N1: 7 | O1: 8 | P1: 9 | Q1: 10 | R1: 11 | S1: 12 | T1: 13 | U1: 14 | V1: 15 | W1: 16 | X1: 17 | Y1: 18 | Z1: 19 | AA1: 20 | AB1: 21 | AC1: 22 | AD1: 23 | AE1: 24 | AF1: 25 | AG1: 26 | AH1: 27 | AI1: 28 | AJ1: 29 | AK1: 30 | AL1: 31 | AM1: 32 | AN1: 33 | AO1: 34 | AP1: 35 | AQ1: 36 | AR1: 37 | AS1: 38 | AT1: 39 | AU1: 40 | AV1: 41 | AW1: 42 | AX1: 43 | AY1: 44 | AZ1: 45 | BA1: Nennstrom
A2: 1 | B2: B (4230) | C2: 3.2 | D2: 4.8 | E2: 2 | F2: Leitungsschutzschalter Fa. E-T-A | H2: 0 | I2: x | J2: x | K2: x | L2: x | M2: x | N2: x | O2: x | P2: x | Q2: x | R2: x | S2: x | T2: x | U2: x | V2: x | W2: x | X2: x | Y2: x | Z2: x | AA2: x | AB2: x | AC2: x | AD2: x | AE2: x | AF2: x | AG2: x | AH2: x | AI2: x | AJ2: x | AK2: x | AL2: x | AM2: x | AN2: x | AO2: x | AP2: x | BA2: 0
A3: 2 | B3: C (4230) | C3: 6.4 | D3: 9.6 | E3: 3 | F3: Leitungsschutzschalter Fa. E-T-A | H3: 0.1 | I3: x | J3: x | K3: x | L3: x | M3: 162 | N3: 162 | O3: 92 | P3: 42 | Q3: 108 | R3: 108 | S3: 108 | T3: x | U3: x | V3: x | W3: x | X3: x | Y3: x | Z3: x | AA3: x | AB3: x | AC3: x | AD3: x | AE3: x | AF3: x | AG3: x | AH3: x | AI3: x | AJ3: x | AK3: x | AL3: x | AM3: x | AN3: x | AO3: x | AP3: x | BA3: 0.1
A4: 3 | B4: D (4230) | C4: 9.6 | D4: 14.4 | E4: 4 | F4: Leitungsschutzschalter Fa. E-T-A | H4: 0.101 | I4: x | J4: x | K4: x | L4: x | M4: x | N4: x | O4: x | P4: x | Q4: x | R4: x | S4: x | T4: x | U4: x | V4: x | W4: x | X4: x | Y4: x | Z4: x | AA4: x | AB4: x | AC4: x | AD4: x | AE4: x | AF4: x | AG4: x | AH4: x | AI4: x | AJ4: x | AK4: x | AL4: x | AM4: x | AN4: x | AO4: x | AP4: x | BA4: 0.101
A5: 4 | B5: ESX10-(T) | C5: 1.35 | D5: =IF(Schaltbild!S16<8,1.8,IF(Schaltbild!S16<12,1.5,1.3)) -> 1.8 | E5: 5 | F5: Elektronischer Sicherungsautomat Fa. E-T-A | H5: 0.2 | I5: x | J5: x | K5: x | L5: x | M5: 39.3 | N5: 39.3 | O5: 26.1 | P5: 11.7 | Q5: 29.9 | R5: 29.9 | S5: 29.9 | T5: x | U5: x | V5: x | W5: x | X5: x | Y5: x | Z5: x | AA5: x | AB5: x | AC5: x | AD5: x | AE5: x | AF5: x | AG5: x | AH5: x | AI5: x | AJ5: x | AK5: 42.5 | AL5: x | AM5: x | AN5: x | AO5: x | AP5: x | BA5: 0.2
A6: 5 | B6: 2210-T(S)-F1 | C6: 2 | D6: 4 | E6: 6 | F6: Therm.-magn. Schutzschalter Fa. E-T-A | H6: 0.201 | I6: x | J6: x | K6: x | L6: x | M6: x | N6: x | O6: x | P6: x | Q6: x | R6: x | S6: x | T6: x | U6: x | V6: x | W6: x | X6: x | Y6: x | Z6: x | AA6: x | AB6: x | AC6: x | AD6: x | AE6: x | AF6: x | AG6: x | AH6: x | AI6: x | AJ6: x | AK6: x | AL6: x | AM6: x | AN6: x | AO6: x | AP6: x | BA6: 0.201
A7: 6 | B7: 2210-T(S)-F2 | C7: 4.5 | D7: 8.5 | E7: 7 | F7: Therm.-magn. Schutzschalter Fa. E-T-A | H7: 0.3 | I7: x | J7: x | K7: x | L7: x | M7: 17.5 | N7: 17.5 | O7: 11.6 | P7: 5.6 | Q7: 14.2 | R7: 14.2 | S7: 14.2 | T7: x | U7: x | V7: x | W7: x | X7: x | Y7: x | Z7: x | AA7: x | AB7: x | AC7: x | AD7: x | AE7: x | AF7: x | AG7: x | AH7: x | AI7: x | AJ7: x | AK7: 20 | AL7: x | AM7: x | AN7: x | AO7: x | AP7: x | BA7: 0.3
A8: 7 | B8: 2210-T(S)-M1 | C8: 7.8 | D8: 15.6 | E8: 8 | F8: Therm.-magn. Schutzschalter Fa. E-T-A | H8: 0.301 | I8: x | J8: x | K8: x | L8: x | M8: x | N8: x | O8: x | P8: x | Q8: x | R8: x | S8: x | T8: x | U8: x | V8: x | W8: x | X8: x | Y8: x | Z8: x | AA8: x | AB8: x | AC8: x | AD8: x | AE8: x | AF8: x | AG8: x | AH8: x | AI8: x | AJ8: x | AK8: x | AL8: x | AM8: x | AN8: x | AO8: x | AP8: x | BA8: 0.301
A9: 8 | B9: 2210-T(S)-M3 | C9: 7.8 | D9: 15.6 | E9: 9 | F9: Therm.-magn. Schutzschalter Fa. E-T-A | H9: 0.4 | I9: x | J9: x | K9: x | L9: x | M9: 9.2 | N9: 9.2 | O9: 6.6 | P9: 2.9 | Q9: 7.9 | R9: 7.9 | S9: 7.9 | T9: x | U9: x | V9: x | W9: x | X9: x | Y9: x | Z9: x | AA9: x | AB9: x | AC9: x | AD9: x | AE9: x | AF9: x | AG9: x | AH9: x | AI9: x | AJ9: x | AK9: x | AL9: x | AM9: x | AN9: x | AO9: x | AP9: x | BA9: 0.4
A10: 9 | B10: 2215-F1 | C10: 2 | D10: 4 | E10: 10 | F10: Therm.-magn. Schutzschalter Fa. E-T-A | H10: 0.401 | I10: x | J10: x | K10: x | L10: x | M10: x | N10: x | O10: x | P10: x | Q10: x | R10: x | S10: x | T10: x | U10: x | V10: x | W10: x | X10: x | Y10: x | Z10: x | AA10: x | AB10: x | AC10: x | AD10: x | AE10: x | AF10: x | AG10: x | AH10: x | AI10: x | AJ10: x | AK10: x | AL10: x | AM10: x | AN10: x | AO10: x | AP10: x | BA10: 0.401
A11: 10 | B11: 2215-F2 | C11: 1.01 | D11: 2.5 | E11: 11 | F11: Therm.-magn. Schutzschalter Fa. E-T-A | H11: 0.5 | I11: x | J11: x | K11: x | L11: 0.14 | M11: 6.8 | N11: 6.8 | O11: 4.1 | P11: 1.75 | Q11: 3 | R11: 3 | S11: 3 | T11: 0.17 | U11: 0.2 | V11: x | W11: x | X11: x | Y11: 5 | Z11: 5 | AA11: 5 | AB11: x | AC11: x | AD11: x | AE11: 0.18 | AF11: 0.18 | AG11: x | AH11: x | AI11: x | AJ11: 5.5 | AK11: 6.34 | AL11: 10.1 | AM11: x | AN11: x | AO11: 3.4 | AP11: 3.12 | BA11: 0.5
A12: 11 | B12: 2215-M1 | C12: 4.5 | D12: 10.5 | E12: 12 | F12: Therm.-magn. Schutzschalter Fa. E-T-A | H12: 0.501 | I12: x | J12: x | K12: x | L12: x | M12: x | N12: x | O12: x | P12: x | Q12: x | R12: x | S12: x | T12: x | U12: x | V12: x | W12: x | X12: x | Y12: x | Z12: x | AA12: x | AB12: x | AC12: x | AD12: x | AE12: x | AF12: x | AG12: x | AH12: x | AI12: x | AJ12: x | AK12: x | AL12: x | AM12: x | AN12: x | AO12: x | AP12: x | BA12: 0.501
A13: 12 | B13: REF16-S | C13: 1.25 | D13: 1.25 | E13: 13 | F13: Elektronischer Sicherungsautomat Fa. E-T-A | H13: 0.6 | I13: x | J13: x | K13: x | L13: x | M13: 4.2 | N13: 4.2 | O13: 3 | P13: 1.42 | Q13: 3.5 | R13: 3.5 | S13: 3.5 | T13: x | U13: x | V13: x | W13: x | X13: x | Y13: x | Z13: x | AA13: x | AB13: x | AC13: x | AD13: x | AE13: x | AF13: x | AG13: x | AH13: x | AI13: x | AJ13: x | AK13: x | AL13: x | AM13: x | AN13: x | AO13: x | AP13: x | BA13: 0.6
A14: 13 | B14: ESX10-(TD) | C14: 1.05 | D14: 1.4 | E14: 14 | F14: Elektronischer Sicherungsautomat Fa. E-T-A | H14: 0.601 | I14: x | J14: x | K14: x | L14: x | M14: x | N14: x | O14: x | P14: x | Q14: x | R14: x | S14: x | T14: x | U14: x | V14: x | W14: x | X14: x | Y14: x | Z14: x | AA14: x | AB14: x | AC14: x | AD14: x | AE14: x | AF14: x | AG14: x | AH14: x | AI14: x | AJ14: x | AK14: x | AL14: x | AM14: x | AN14: x | AO14: x | AP14: x | BA14: 0.601
A15: 14 | B15: REX22D | C15: 1.05 | D15: 1.35 | E15: 15 | F15: Elektronischer Sicherungsautomat Fa. E-T-A | H15: 0.8 | I15: x | J15: x | K15: x | L15: x | M15: 2.8 | N15: 2.8 | O15: 1.65 | P15: 0.75 | Q15: 1.8 | R15: 1.8 | S15: 1.8 | T15: x | U15: x | V15: x | W15: x | X15: x | Y15: x | Z15: x | AA15: x | AB15: x | AC15: x | AD15: x | AE15: x | AF15: x | AG15: x | AH15: x | AI15: x | AJ15: x | AK15: x | AL15: x | AM15: x | AN15: x | AO15: x | AP15: x | BA15: 0.8
A16: 15 | B16: ESX50D | C16: 1.05 | D16: 1.35 | E16: 16 | F16: Elektronischer Sicherungsautomat Fa. E-T-A | H16: 0.801 | I16: x | J16: x | K16: x | L16: x | M16: x | N16: x | O16: x | P16: x | Q16: x | R16: x | S16: x | T16: x | U16: x | V16: x | W16: x | X16: x | Y16: x | Z16: x | AA16: x | AB16: x | AC16: x | AD16: x | AE16: x | AF16: x | AG16: x | AH16: x | AI16: x | AJ16: x | AK16: x | AL16: x | AM16: x | AN16: x | AO16: x | AP16: x | BA16: 0.801
A17: 16 | B17: ESX60D | C17: 1.05 | D17: 1.35 | E17: 17 | F17: Elektronischer Sicherungsautomat Fa. E-T-A | H17: 1 | I17: 1.5 | J17: 1.5 | K17: 1.5 | L17: 0.08 | M17: 1.6 | N17: 1.6 | O17: 1.1 | P17: 0.5 | Q17: 1.19 | R17: 1.19 | S17: 1.19 | T17: 0.14 | U17: 0.14 | V17: 0.045 | W17: 0.015 | X17: 0.012 | Y17: 1.1 | Z17: 1.1 | AA17: 1.1 | AB17: x | AC17: 0.015 | AD17: x | AE17: 0.1 | AF17: 0.1 | AG17: 0.18 | AH17: x | AI17: x | AJ17: 1.44 | AK17: 1.55 | AL17: 2.27 | AM17: 1.955 | AN17: x | AO17: 1.21 | AP17: 1.03 | BA17: 1
A18: 17 | B18: 2216-S-F1 | C18: 2 | D18: 4 | E18: 18 | F18: Therm.-magn. Schutzschalter Fa. E-T-A | H18: 1.01 | I18: x | J18: x | K18: x | L18: x | M18: x | N18: x | O18: x | P18: x | Q18: x | R18: x | S18: x | T18: x | U18: x | V18: x | W18: x | X18: x | Y18: x | Z18: x | AA18: x | AB18: x | AC18: x | AD18: x | AE18: x | AF18: x | AG18: x | AH18: x | AI18: x | AJ18: x | AK18: x | AL18: x | AM18: x | AN18: x | AO18: x | AP18: x | BA18: 1.01
A19: 18 | B19: 2216-S-F2 | C19: 4 | D19: 8 | E19: 19 | F19: Therm.-magn. Schutzschalter Fa. E-T-A | H19: 1.5 | I19: x | J19: x | K19: x | L19: x | M19: 0.78 | N19: 0.78 | O19: 0.47 | P19: 0.22 | Q19: 0.54 | R19: 0.54 | S19: 0.54 | T19: x | U19: x | V19: x | W19: x | X19: x | Y19: x | Z19: x | AA19: x | AB19: x | AC19: x | AD19: x | AE19: x | AF19: x | AG19: x | AH19: x | AI19: x | AJ19: x | AK19: x | AL19: x | AM19: x | AN19: x | AO19: 0.63 | AP19: x | BA19: 1.5
A20: 19 | B20: 2216-S-M1 | C20: 8 | D20: 15 | E20: 20 | F20: Therm.-magn. Schutzschalter Fa. E-T-A | H20: 1.501 | I20: x | J20: x | K20: x | L20: x | M20: x | N20: x | O20: x | P20: x | Q20: x | R20: x | S20: x | T20: x | U20: x | V20: x | W20: x | X20: x | Y20: x | Z20: x | AA20: x | AB20: x | AC20: x | AD20: x | AE20: x | AF20: x | AG20: x | AH20: x | AI20: x | AJ20: x | AK20: x | AL20: x | AM20: x | AN20: x | AO20: x | AP20: x | BA20: 1.501
A21: 20 | B21: ESX10-T 16A | C21: 1.15 | D21: 1.15 | E21: 21 | F21: Elektronischer Sicherungsautomat Fa. E-T-A | H21: 1.6 | I21: x | J21: x | K21: x | L21: x | M21: x | N21: x | O21: x | P21: x | Q21: x | R21: x | S21: x | T21: x | U21: x | V21: x | W21: x | X21: x | Y21: x | Z21: x | AA21: x | AB21: x | AC21: x | AD21: x | AE21: x | AF21: x | AG21: x | AH21: x | AI21: x | AJ21: 0.63 | AK21: 0.695 | AL21: 1.1 | AM21: x | AN21: x | AO21: x | AP21: x | BA21: 1.6
A22: 21 | B22: ESX10-S 1A | C22: 1.2 | D22: 2.5 | E22: 22 | F22: Elektronischer Sicherungsautomat Fa. E-T-A | H22: 1.601 | I22: x | J22: x | K22: x | L22: x | M22: x | N22: x | O22: x | P22: x | Q22: x | R22: x | S22: x | T22: x | U22: x | V22: x | W22: x | X22: x | Y22: x | Z22: x | AA22: x | AB22: x | AC22: x | AD22: x | AE22: x | AF22: x | AG22: x | AH22: x | AI22: x | AJ22: x | AK22: x | AL22: x | AM22: x | AN22: x | AO22: x | AP22: x | BA22: 1.601
A23: 22 | B23: ESX10-S 2-10A | C23: 1.2 | D23: 1.4 | E23: 23 | F23: Elektronischer Sicherungsautomat Fa. E-T-A | H23: 2 | I23: 0.4 | J23: 0.4 | K23: 0.4 | L23: 0.065 | M23: 0.42 | N23: 0.42 | O23: 0.28 | P23: 0.136 | Q23: 0.33 | R23: 0.33 | S23: 0.33 | T23: 0.05 | U23: 0.09 | V23: 0.045 | W23: 0.015 | X23: 0.012 | Y23: 0.3 | Z23: 0.3 | AA23: 0.3 | AB23: x | AC23: x | AD23: 0.015 | AE23: 0.055 | AF23: 0.055 | AG23: 0.055 | AH23: x | AI23: x | AJ23: 0.46 | AK23: 0.46 | AL23: 0.619 | AM23: 0.51 | AN23: 0.375 | AO23: 0.295 | AP23: 0.292 | BA23: 2
A24: 23 | B24: ESS31-T | C24: 1.2 | D24: 1.2 | E24: 24 | F24: Elektronischer Schutzschalter Fa. E-T-A | H24: 2.01 | I24: x | J24: x | K24: x | L24: x | M24: x | N24: x | O24: x | P24: x | Q24: x | R24: x | S24: x | T24: x | U24: x | V24: x | W24: x | X24: x | Y24: x | Z24: x | AA24: x | AB24: x | AC24: x | AD24: x | AE24: x | AF24: x | AG24: x | AH24: x | AI24: x | AJ24: x | AK24: x | AL24: x | AM24: x | AN24: x | AO24: x | AP24: x | BA24: 2.01
A25: 24 | B25: ESS30-S | C25: 1.2 | D25: 1.2 | E25: 25 | F25: Elektronischer Schutzschalter Fa. E-T-A | H25: 2.5 | I25: x | J25: x | K25: x | L25: x | M25: 0.26 | N25: 0.26 | O25: 0.183 | P25: 0.083 | Q25: 0.2 | R25: 0.2 | S25: 0.2 | T25: x | U25: x | V25: x | W25: x | X25: x | Y25: x | Z25: x | AA25: x | AB25: x | AC25: x | AD25: x | AE25: x | AF25: x | AG25: x | AH25: x | AI25: x | AJ25: x | AK25: x | AL25: x | AM25: x | AN25: x | AO25: x | AP25: x | BA25: 2.5
A26: 25 | B26: REX12(D)-T | C26: 1.05 | D26: 3.5 | E26: 26 | F26: Elektronischer Sicherungsautomat Fa. E-T-A | H26: 2.51 | I26: x | J26: x | K26: x | L26: x | M26: x | N26: x | O26: x | P26: x | Q26: x | R26: x | S26: x | T26: x | U26: x | V26: x | W26: x | X26: x | Y26: x | Z26: x | AA26: x | AB26: x | AC26: x | AD26: x | AE26: x | AF26: x | AG26: x | AH26: x | AI26: x | AJ26: x | AK26: x | AL26: x | AM26: x | AN26: x | AO26: x | AP26: x | BA26: 2.51
A27: 26 | B27: ESX10-T 20A/25A | C27: 1.1 | D27: 1.5 | E27: 27 | F27: Elektronischer Sicherungsautomat Fa. E-T-A | H27: 3 | I27: 0.2 | J27: 0.2 | K27: 0.2 | L27: 0.027 | M27: 0.18 | N27: 0.18 | O27: 0.124 | P27: 0.057 | Q27: 0.14 | R27: 0.14 | S27: 0.14 | T27: 0.04 | U27: 0.047 | V27: 0.045 | W27: 0.015 | X27: 0.012 | Y27: 0.14 | Z27: 0.14 | AA27: 0.14 | AB27: x | AC27: x | AD27: 0.015 | AE27: 0.05 | AF27: 0.05 | AG27: 0.04 | AH27: x | AI27: x | AJ27: 0.15 | AK27: 0.165 | AL27: 0.202 | AM27: 0.205 | AN27: x | AO27: 0.137 | AP27: 0.131 | BA27: 3
A28: 27 | B28: B (ABB) | C28: 4 | D28: 7 | E28: 28 | F28: Leitungsschutzschalter, ABB S 200 Serie | H28: 3.01 | I28: x | J28: x | K28: x | L28: x | M28: x | N28: x | O28: x | P28: x | Q28: x | R28: x | S28: x | T28: x | U28: x | V28: x | W28: x | X28: x | Y28: x | Z28: x | AA28: x | AB28: x | AC28: x | AD28: x | AE28: x | AF28: x | AG28: x | AH28: x | AI28: x | AJ28: x | AK28: x | AL28: x | AM28: x | AN28: x | AO28: x | AP28: x | BA28: 3.01
A29: 28 | B29: C (ABB) | C29: 7 | D29: 15 | E29: 29 | F29: Leitungsschutzschalter, ABB S 200 Serie | H29: 3.6 | I29: x | J29: x | K29: x | L29: x | M29: x | N29: x | O29: x | P29: x | Q29: x | R29: x | S29: x | T29: x | U29: x | V29: 0.045 | W29: x | X29: x | Y29: x | Z29: x | AA29: x | AB29: x | AC29: x | AD29: x | AE29: 0.043 | AF29: 0.043 | AG29: x | AH29: x | AI29: x | AJ29: x | AK29: x | AL29: x | AM29: x | AN29: x | AO29: x | AP29: x | BA29: 3.6
A30: 29 | B30: K (ABB) | C30: 14 | D30: 21 | E30: 30 | F30: Leitungsschutzschalter, ABB S 200 Serie | H30: 3.61 | I30: x | J30: x | K30: x | L30: x | M30: x | N30: x | O30: x | P30: x | Q30: x | R30: x | S30: x | T30: x | U30: x | V30: x | W30: x | X30: x | Y30: x | Z30: x | AA30: x | AB30: x | AC30: x | AD30: x | AE30: x | AF30: x | AG30: x | AH30: x | AI30: x | AJ30: x | AK30: x | AL30: x | AM30: x | AN30: x | AO30: x | AP30: x | BA30: 3.61
A31: 30 | B31: Z (ABB) | C31: 3 | D31: 4.5 | E31: 31 | F31: Leitungsschutzschalter, ABB S 200 Serie | H31: 4 | I31: 0.15 | J31: 0.15 | K31: 0.15 | L31: 0.025 | M31: 0.12 | N31: 0.12 | O31: 0.077 | P31: 0.041 | Q31: 0.084 | R31: 0.084 | S31: 0.084 | T31: 0.025 | U31: 0.05 | V31: 0.027 | W31: 0.015 | X31: 0.012 | Y31: 0.09 | Z31: 0.09 | AA31: 0.09 | AB31: x | AC31: x | AD31: 0.015 | AE31: 0.04 | AF31: 0.04 | AG31: 0.028 | AH31: x | AI31: x | AJ31: 0.11 | AK31: 0.12 | AL31: 0.149 | AM31: 0.134 | AN31: 0.091 | AO31: 0.081 | AP31: 0.073 | BA31: 4
A32: 31 | B32: A (Siemens) | C32: 2.8 | D32: 4.5 | E32: 32 | F32: Leitungsschutzschalter, Siemens 5SY4 | H32: 4.01 | I32: x | J32: x | K32: x | L32: x | M32: x | N32: x | O32: x | P32: x | Q32: x | R32: x | S32: x | T32: x | U32: x | V32: x | W32: x | X32: x | Y32: x | Z32: x | AA32: x | AB32: x | AC32: x | AD32: x | AE32: x | AF32: x | AG32: x | AH32: x | AI32: x | AJ32: x | AK32: x | AL32: x | AM32: x | AN32: x | AO32: x | AP32: x | BA32: 4.01
A33: 32 | B33: B (Siemens) | C33: 4.2 | D33: 7 | E33: 33 | F33: Leitungsschutzschalter, Siemens 5SY4 | H33: 5 | I33: 0.04 | J33: 0.04 | K33: 0.04 | L33: x | M33: 0.092 | N33: 0.092 | O33: 0.063 | P33: 0.032 | Q33: 0.057 | R33: 0.057 | S33: 0.057 | T33: x | U33: x | V33: 0.017 | W33: 0.015 | X33: 0.012 | Y33: 0.06 | Z33: 0.06 | AA33: 0.06 | AB33: x | AC33: x | AD33: 0.015 | AE33: x | AF33: x | AG33: x | AH33: x | AI33: x | AJ33: x | AK33: x | AL33: x | AM33: x | AN33: x | AO33: 0.086 | AP33: x | BA33: 5
A34: 33 | B34: C (Siemens) | C34: 7 | D34: 14 | E34: 34 | F34: Leitungsschutzschalter, Siemens 5SY4 | H34: 5.01 | I34: x | J34: x | K34: x | L34: x | M34: x | N34: x | O34: x | P34: x | Q34: x | R34: x | S34: x | T34: x | U34: x | V34: x | W34: x | X34: x | Y34: x | Z34: x | AA34: x | AB34: x | AC34: x | AD34: x | AE34: x | AF34: x | AG34: x | AH34: x | AI34: x | AJ34: x | AK34: x | AL34: x | AM34: x | AN34: x | AO34: x | AP34: x | BA34: 5.01
A35: 34 | B35: D (Siemens) | C35: 14 | D35: 28 | E35: 35 | F35: Leitungsschutzschalter, Siemens 5SY4 | H35: 6 | I35: 0.033 | J35: 0.033 | K35: 0.033 | L35: 0.015 | M35: 0.054 | N35: 0.054 | O35: 0.045 | P35: 0.021 | Q35: 0.043 | R35: 0.043 | S35: 0.043 | T35: 0.022 | U35: 0.05 | V35: 0.017 | W35: 0.015 | X35: 0.012 | Y35: 0.05 | Z35: 0.05 | AA35: 0.05 | AB35: x | AC35: x | AD35: 0.015 | AE35: 0.028 | AF35: 0.028 | AG35: 0.028 | AH35: x | AI35: 0.055 | AJ35: 0.055 | AK35: 0.052 | AL35: 0.104 | AM35: 0.058 | AN35: 0.055 | AO35: 0.044 | AP35: 0.043 | BA35: 6
A36: 35 | E36: 36 | H36: 6.01 | I36: x | J36: x | K36: x | L36: x | M36: x | N36: x | O36: x | P36: x | Q36: x | R36: x | S36: x | T36: x | U36: x | V36: x | W36: x | X36: x | Y36: x | Z36: x | AA36: x | AB36: x | AC36: x | AD36: x | AE36: x | AF36: x | AG36: x | AH36: x | AI36: x | AJ36: x | AK36: x | AL36: x | AM36: x | AN36: x | AO36: x | AP36: x | BA36: 6.01
A37: 36 | E37: 37 | H37: 7 | I37: 0.029 | J37: 0.029 | K37: 0.029 | L37: x | M37: x | N37: x | O37: x | P37: x | Q37: x | R37: x | S37: x | T37: x | U37: x | V37: 0.017 | W37: 0.015 | X37: 0.012 | Y37: x | Z37: x | AA37: x | AB37: x | AC37: x | AD37: 0.015 | AE37: x | AF37: x | AG37: x | AH37: x | AI37: x | AJ37: x | AK37: x | AL37: x | AM37: x | AN37: x | AO37: x | AP37: x | BA37: 7
A38: 37 | E38: 38 | H38: 7.01 | I38: x | J38: x | K38: x | L38: x | M38: x | N38: x | O38: x | P38: x | Q38: x | R38: x | S38: x | T38: x | U38: x | V38: x | W38: x | X38: x | Y38: x | Z38: x | AA38: x | AB38: x | AC38: x | AD38: x | AE38: x | AF38: x | AG38: x | AH38: x | AI38: x | AJ38: x | AK38: x | AL38: x | AM38: x | AN38: x | AO38: x | AP38: x | BA38: 7.01
A39: 38 | E39: 39 | H39: 8 | I39: 0.019 | J39: 0.019 | K39: 0.019 | L39: 0.015 | M39: 0.025 | N39: 0.025 | O39: 0.02 | P39: 0.02 | Q39: 0.02 | R39: 0.02 | S39: 0.02 | T39: 0.0125 | U39: 0.0275 | V39: 0.011 | W39: 0.015 | X39: 0.012 | Y39: 0.02 | Z39: 0.02 | AA39: 0.02 | AB39: x | AC39: x | AD39: 0.015 | AE39: 0.024 | AF39: 0.024 | AG39: 0.02 | AH39: x | AI39: x | AJ39: x | AK39: x | AL39: x | AM39: 0.027 | AN39: x | AO39: 0.014 | AP39: 0.012 | BA39: 8
A40: 39 | E40: 40 | H40: 8.01 | I40: x | J40: x | K40: x | L40: x | M40: x | N40: x | O40: x | P40: x | Q40: x | R40: x | S40: x | T40: x | U40: x | V40: x | W40: x | X40: x | Y40: x | Z40: x | AA40: x | AB40: x | AC40: x | AD40: x | AE40: x | AF40: x | AG40: x | AH40: x | AI40: x | AJ40: x | AK40: x | AL40: x | AM40: x | AN40: x | AO40: x | AP40: x | BA40: 8.01
A41: 40 | E41: 41 | H41: 9 | I41: x | J41: x | K41: x | L41: x | M41: x | N41: x | O41: x | P41: x | Q41: x | R41: x | S41: x | T41: x | U41: x | V41: x | W41: 0.015 | X41: 0.012 | Y41: x | Z41: x | AA41: x | AB41: x | AC41: x | AD41: 0.015 | AE41: x | AF41: x | AG41: x | AH41: x | AI41: x | AJ41: x | AK41: x | AL41: x | AM41: x | AN41: x | AO41: x | AP41: x | BA41: 9
A42: 41 | E42: 42 | H42: 9.01 | I42: x | J42: x | K42: x | L42: x | M42: x | N42: x | O42: x | P42: x | Q42: x | R42: x | S42: x | T42: x | U42: x | V42: x | W42: x | X42: x | Y42: x | Z42: x | AA42: x | AB42: x | AC42: x | AD42: x | AE42: x | AF42: x | AG42: x | AH42: x | AI42: x | AJ42: x | AK42: x | AL42: x | AM42: x | AN42: x | AO42: x | AP42: x | BA42: 9.01
A43: 42 | E43: 43 | H43: 10 | I43: 0.015 | J43: 0.015 | K43: 0.015 | L43: 0.015 | M43: 0.022 | N43: 0.022 | O43: 0.02 | P43: 0.02 | Q43: 0.02 | R43: 0.02 | S43: 0.02 | T43: 0.012 | U43: 0.028 | V43: 0.011 | W43: 0.015 | X43: 0.012 | Y43: 0.02 | Z43: 0.02 | AA43: 0.02 | AB43: x | AC43: x | AD43: 0.015 | AE43: 0.021 | AF43: 0.021 | AG43: 0.018 | AH43: x | AI43: 0.0133 | AJ43: 0.0133 | AK43: 0.0126 | AL43: 0.0175 | AM43: 0.018 | AN43: 0.0133 | AO43: 0.01 | AP43: 0.008 | BA43: 10
A44: 43 | E44: 44 | H44: 10.01 | I44: x | J44: x | K44: x | L44: x | M44: x | N44: x | O44: x | P44: x | Q44: x | R44: x | S44: x | T44: x | U44: x | V44: x | W44: x | X44: x | Y44: x | Z44: x | AA44: x | AB44: x | AC44: x | AD44: x | AE44: x | AF44: x | AG44: x | AH44: x | AI44: x | AJ44: x | AK44: x | AL44: x | AM44: x | AN44: x | AO44: x | AP44: x | BA44: 10.01
A45: 44 | E45: 45 | H45: 12 | I45: 0.013 | J45: 0.013 | K45: 0.013 | L45: 0.015 | M45: 0.02 | N45: 0.02 | O45: 0.02 | P45: 0.02 | Q45: x | R45: x | S45: x | T45: x | U45: x | V45: 0.006 | W45: x | X45: x | Y45: 0.02 | Z45: 0.02 | AA45: 0.02 | AB45: x | AC45: x | AD45: x | AE45: 0.018 | AF45: x | AG45: x | AH45: x | AI45: x | AJ45: x | AK45: x | AL45: x | AM45: x | AN45: x | AO45: x | AP45: x | BA45: 12
A46: 45 | E46: 46 | H46: 12.01 | I46: x | J46: x | K46: x | L46: x | M46: x | N46: x | O46: x | P46: x | Q46: x | R46: x | S46: x | T46: x | U46: x | V46: x | W46: x | X46: x | Y46: x | Z46: x | AA46: x | AB46: x | AC46: x | AD46: x | AE46: x | AF46: x | AG46: x | AH46: x | AI46: x | AJ46: x | AK46: x | AL46: x | AM46: x | AN46: x | AO46: x | AP46: x | BA46: 12.01
A47: 46 | E47: 47 | H47: 13 | I47: 0.008 | J47: 0.008 | K47: 0.008 | L47: x | M47: x | N47: x | O47: x | P47: x | Q47: x | R47: x | S47: x | T47: x | U47: x | V47: x | W47: x | X47: x | Y47: x | Z47: x | AA47: x | AB47: x | AC47: x | AD47: x | AE47: x | AF47: x | AG47: x | AH47: x | AI47: 0.0133 | AJ47: 0.0133 | AK47: 0.0126 | AL47: x | AM47: x | AN47: x | AO47: x | AP47: x | BA47: 13
A48: 47 | E48: 48 | H48: 13.01 | I48: x | J48: x | K48: x | L48: x | M48: x | N48: x | O48: x | P48: x | Q48: x | R48: x | S48: x | T48: x | U48: x | V48: x | W48: x | X48: x | Y48: x | Z48: x | AA48: x | AB48: x | AC48: x | AD48: x | AE48: x | AF48: x | AG48: x | AH48: x | AI48: x | AJ48: x | AK48: x | AL48: x | AM48: x | AN48: x | AO48: x | AP48: x | BA48: 13.01
A49: 48 | E49: 49 | H49: 15 | I49: 0.007 | J49: 0.007 | K49: 0.007 | L49: x | M49: x | N49: x | O49: x | P49: x | Q49: x | R49: x | S49: x | T49: x | U49: x | V49: 0.006 | W49: x | X49: x | Y49: x | Z49: x | AA49: x | AB49: x | AC49: x | AD49: x | AE49: x | AF49: x | AG49: x | AH49: x | AI49: x | AJ49: x | AK49: x | AL49: x | AM49: x | AN49: x | AO49: x | AP49: x | BA49: 15
A50: 49 | E50: 50 | H50: 16 | I50: 0.006 | J50: 0.006 | K50: 0.006 | L50: x | M50: 0.02 | N50: 0.02 | O50: 0.02 | P50: 0.02 | Q50: x | R50: x | S50: x | T50: x | U50: x | V50: 0.006 | W50: x | X50: x | Y50: 0.02 | Z50: 0.02 | AA50: 0.02 | AB50: 0.009375 | AC50: x | AD50: x | AE50: x | AF50: x | AG50: x | AH50: x | AI50: 0.007 | AJ50: 0.007 | AK50: 0.0077 | AL50: 0.0109 | AM50: 0.009 | AN50: 0.007 | AO50: 0.006 | AP50: 0.006 | BA50: 16
A51: 50 | E51: 51 | H51: 16.01 | I51: x | J51: x | K51: x | L51: x | M51: x | N51: x | O51: x | P51: x | Q51: x | R51: x | S51: x | T51: x | U51: x | V51: x | W51: x | X51: x | Y51: x | Z51: x | AA51: x | AB51: x | AC51: x | AD51: x | AE51: x | AF51: x | AG51: x | AH51: x | AI51: x | AJ51: x | AK51: x | AL51: x | AM51: x | AN51: x | AO51: x | AP51: x | BA51: 16.01
A52: 51 | E52: 52 | H52: 20 | I52: 0.004 | J52: 0.004 | K52: 0.004 | L52: x | M52: x | N52: x | O52: 0.02 | P52: x | Q52: x | R52: x | S52: x | T52: x | U52: x | V52: 0.0053 | W52: x | X52: x | Y52: x | Z52: x | AA52: x | AB52: x | AC52: x | AD52: x | AE52: x | AF52: x | AG52: x | AH52: 0.0045 | AI52: 0.0063 | AJ52: 0.0063 | AK52: 0.0067 | AL52: 0.006 | AM52: 0.006 | AN52: 0.0063 | AO52: 0.004 | AP52: 0.004 | BA52: 20
A53: 52 | E53: 53 | H53: 20.01 | I53: x | J53: x | K53: x | L53: x | M53: x | N53: x | O53: x | P53: x | Q53: x | R53: x | S53: x | T53: x | U53: x | V53: x | W53: x | X53: x | Y53: x | Z53: x | AA53: x | AB53: x | AC53: x | AD53: x | AE53: x | AF53: x | AG53: x | AH53: x | AI53: x | AJ53: x | AK53: x | AL53: x | AM53: x | AN53: x | AO53: x | AP53: x | BA53: 20.01
A54: 53 | E54: 54 | H54: 25 | I54: 0.0032 | J54: 0.0032 | K54: 0.0032 | L54: x | M54: x | N54: x | O54: 0.02 | P54: x | Q54: x | R54: x | S54: x | T54: x | U54: x | V54: x | W54: x | X54: x | Y54: x | Z54: x | AA54: x | AB54: x | AC54: x | AD54: x | AE54: x | AF54: x | AG54: x | AH54: 0.0048 | AI54: 0.005 | AJ54: 0.005 | AK54: 0.0046 | AL54: 0.0041 | AM54: 0.005 | AN54: 0.005 | AO54: 0.003 | AP54: 0.003 | BA54: 25
H55: 25.01 | I55: x | J55: x | K55: x | L55: x | M55: x | N55: x | O55: x | P55: x | Q55: x | R55: x | S55: x | T55: x | U55: x | V55: x | W55: x | X55: x | Y55: x | Z55: x | AA55: x | AB55: x | AC55: x | AD55: x | AE55: x | AF55: x | AG55: x | AH55: x | AI55: x | AJ55: x | AK55: x | AL55: x | AM55: x | AN55: x | AO55: x | AP55: x | BA55: 25.01
H56: 32 | I56: 0.0022 | J56: 0.0022 | K56: 0.0022 | L56: x | M56: x | N56: x | O56: x | P56: x | Q56: x | R56: x | S56: x | T56: x | U56: x | V56: x | W56: x | X56: x | Y56: x | Z56: x | AA56: x | AB56: x | AC56: x | AD56: x | AE56: x | AF56: x | AG56: x | AH56: x | AI56: 0.0036 | AJ56: 0.0036 | AK56: 0.0035 | AL56: 0.0028 | AM56: 0.003 | AN56: 0.0036 | AO56: 0.0029 | AP56: 0.002 | BA56: 32
H57: 32.01 | I57: x | J57: x | K57: x | L57: x | M57: x | N57: x | O57: x | P57: x | Q57: x | R57: x | S57: x | T57: x | U57: x | V57: x | W57: x | X57: x | Y57: x | Z57: x | AA57: x | AB57: x | AC57: x | AD57: x | AE57: x | AF57: x | AG57: x | AH57: x | AI57: x | AJ57: x | AK57: x | AL57: x | AM57: x | AN57: x | AO57: x | AP57: x | BA57: 32.01
A58: Alle Werte für DC-Anwendung !
H59: Innenwiderstand in Abhängigkeit von Nennstrom und Kennlinie (siehe Tab 1)
A61: abhängig vom gewählten Nennstrom in Schaltbild S16 !

Sheet Leitungsquerschnitt
A1: Nennstrom des Schutzschaltorgans in Abhängigkeit vom Leitungsquerschnitt
A2: Diese Datei dient nur als Planungshilfe!
A3: Für die Strombelastbarkeit der Leitungen, etc. sind die einschlägigen,
A4: international gültigen Normen und Vorschriften zu beachten.
A6: max. Belastbarkeit in A | B6: Schutzorgan / Nennstrom in A | C6: Nennquerschnitt in mm², Leitung aus Cu | D6: Schutzorgan / Nennstrom in A
A8: 2 | B8: 0 | C8: 0.14 | D8: 0
A9: 2 | B9: 0.1 | C9: 0.14 | D9: 0.1
A10: 2 | B10: 0.101 | C10: 0.14 | D10: 0.101
A11: 2 | B11: 0.2 | C11: 0.14 | D11: 0.2
A12: 2 | B12: 0.201 | C12: 0.14 | D12: 0.201
A13: 2 | B13: 0.3 | C13: 0.14 | D13: 0.3
A14: 2 | B14: 0.301 | C14: 0.14 | D14: 0.301
A15: 2 | B15: 0.4 | C15: 0.14 | D15: 0.4
A16: 2 | B16: 0.401 | C16: 0.14 | D16: 0.401
A17: 2 | B17: 0.5 | C17: 0.14 | D17: 0.5
A18: 2 | B18: 0.501 | C18: 0.14 | D18: 0.501
A19: 2 | B19: 0.6 | C19: 0.14 | D19: 0.6
A20: 2 | B20: 0.601 | C20: 0.14 | D20: 0.601
A21: 2 | B21: 0.8 | C21: 0.14 | D21: 0.8
A22: 2 | B22: 0.801 | C22: 0.14 | D22: 0.801
A23: 2 | B23: 1 | C23: 0.14 | D23: 1
A24: 4 | B24: 1.01 | C24: 0.25 | D24: 1.01
A25: 4 | B25: 1.5 | C25: 0.25 | D25: 1.5
A26: 4 | B26: 1.6 | C26: 0.25 | D26: 1.6
A27: 4 | B27: 2 | C27: 0.25 | D27: 2
A28: 6 | B28: 2.01 | C28: 0.34 | D28: 2.01
A29: 6 | B29: 2.5 | C29: 0.34 | D29: 2.5
A30: 6 | B30: 2.51 | C30: 0.34 | D30: 2.51
A31: 6 | B31: 3 | C31: 0.34 | D31: 3
A32: 9 | B32: 3.01 | C32: 0.5 | D32: 3.01
A33: 9 | B33: 4 | C33: 0.5 | D33: 4
A34: 12 | B34: 4.01 | C34: 0.75 | D34: 4.01
A35: 12 | B35: 5 | C35: 0.75 | D35: 5
A36: 12 | B36: 5.01 | C36: 0.75 | D36: 5.01
A37: 12 | B37: 6 | C37: 0.75 | D37: 6
A38: 15 | B38: 6.01 | C38: 1 | D38: 6.01
A39: 15 | B39: 8 | C39: 1 | D39: 8
A40: 15 | B40: 8.01 | C40: 1 | D40: 8.01
A41: 15 | B41: 10 | C41: 1 | D41: 10
A42: 18 | B42: 10.01 | C42: 1.5 | D42: 10.01
A43: 18 | B43: 12 | C43: 1.5 | D43: 12
A44: 18 | B44: 13 | C44: 1.5 | D44: 13
A45: 18 | B45: 16 | C45: 1.5 | D45: 16
A46: 26 | B46: 16.01 | C46: 2.5 | D46: 16.01
A47: 26 | B47: 20 | C47: 2.5 | D47: 20
A48: 34 | B48: 20.01 | C48: 4 | D48: 20.01
A49: 34 | B49: 25 | C49: 4 | D49: 25
A50: 44 | B50: 25.01 | C50: 6 | D50: 25.01
A51: 44 | B51: 32 | C51: 6 | D51: 32
A52: - | B52: 32.01 | C52: x | D52: 32.01
A54: 0.14mm² bis 0.5mm² in Anlehnung an VDE 0891 T1
A56: 0.75mm² bis 6mm² nach VDE 0100-523

Sheet Produktübersicht
A1: Produkt | B1: Kennlinientyp | C1: Bild | D1: Link Homepage | E1: Link EPLAN Data Portal
A3: ESX10-T-20A/25A | B3: Sicherungsautomat elektronisch | D3: ESX10-T-20A/25A | E3: https://dataportal.epulse.cloud/parts/list?search=esx10&page=1&manufacturer=ETA
B4: für Hutschienenmontage
B5: fixe Stromstärken
B6: aktive Strombegrenzung
A8: ESX10 | B8: Sicherungsautomat elektronisch | D8: ESX10 | E8: https://dataportal.epulse.cloud/parts/list?search=esx10&page=1&manufacturer=ETA
B9: steckbar
B10: fixe Stromstärken
B11: aktive Strombegrenzung
A13: ESX10-T | B13: Sicherungsautomat elektronisch | D13: ESX10-T | E13: https://dataportal.epulse.cloud/parts/list?search=esx10&page=1&manufacturer=ETA
B14: für Hutschienenmontage
B15: fixe Stromstärken
B16: aktive Strombegrenzung
A18: ESX10-TD | B18: Sicherungsautomat elektronisch | D18: ESX10-TD | E18: https://dataportal.epulse.cloud/parts/list?search=esx10&page=1&manufacturer=ETA
B19: für Hutschienenmontage
B20: einstellbare Stromstärken
B21: aktive Strombegrenzung
A23: 2210-S | B23: Schutzschalter thermisch-magnetisch | D23: 2210-S | E23: https://dataportal.epulse.cloud/parts/list?search=2210&page=1&manufacturer=ETA
B24: steckbar
A28: 2210-T | B28: Schutzschalter thermisch-magnetisch | D28: 2210-T | E28: https://dataportal.epulse.cloud/parts/list?search=2210&page=1&manufacturer=ETA
B29: für Hutschienenmontage
A33: 2215 | B33: Schutzschalter thermisch-magnetisch | D33: 2215 | E33: -
B34: steckbar
A38: REF16-S | B38: Sicherungsautomat elektronisch | D38: REF16-S | E38: https://dataportal.epulse.cloud/parts/list?search=ref16&page=1&manufacturer=ETA
B39: steckbar
B40: fixe Stromstärken
B41: aktive Strombegrenzung
A43: 4230-T | B43: Leitungsschutzschalter | D43: 4230-T | E43: Standard Leitungsschutzschalter verwenden
B44: für Hutschienenmontage
A48: 2216-S | B48: Schutzschalter thermisch-magnetisch | D48: 2216-S | E48: https://dataportal.epulse.cloud/parts/list?search=2216&page=1&manufacturer=ETA
B49: steckbar
A53: ESX10-TB-16A | B53: Sicherungsautomat elektronisch | D53: ESX10-T-16A | E53: https://dataportal.epulse.cloud/parts/list?search=esx10&page=1&manufacturer=ETA
B54: für Hutschienenmontage
B55: fixe Stromstärke 16A
B56: aktive Strombegrenzung
A58: ESX10-S | B58: Sicherungsautomat elektronisch | D58: ESX10-S | E58: https://dataportal.epulse.cloud/parts/list?search=esx10&page=1&manufacturer=ETA
B59: steckbar
B60: einstellbare Stromstärken 1…10A
B61: aktive Strombegrenzung
A63: ESS31-T | B63: Schutzschalter elektronisch mit galvanischer Trennung | D63: ESS31-T | E63: https://dataportal.epulse.cloud/parts/list?search=ess31&page=1&manufacturer=ETA
B64: für Hutschienenmontage
B65: fixe Stromstärken
B66: aktive Strombegrenzung
A68: ESS30-S | B68: Schutzschalter elektronisch mit galvanischer Trennung | D68: ESS30-S | E68: in Vorbereitung
B69: steckbar
B70: fixe Stromstärken
B71: aktive Strombegrenzung
A73: REX12(D)-T | B73: Sicherungsautomat elektronisch | D73: REX12-T | E73: https://dataportal.epulse.cloud/parts/list?search=REX12&page=1&manufacturer=ETA
B74: für Hutschienenmontage | D74: REX12D-T
B75: fixe Stromstärken
B76: Zeit-Strom-Kennlinie
B77: IO-Link mit REX12D-T
A79: REX22D-T | B79: Sicherungsautomat elektronisch | E79: in Vorbereitung
B80: für Hutschienenmontage
B81: fixe und einstellbare Stromstärken
B82: aktive Strombegrenzung
B83: kommunikativ und nicht kommunikativ in einem Gerät
A85: ESX50D | B85: Sicherungsautomat elektronisch | D85: ESX50D | E85: in Vorbereitung
B86: steckbar
B87: einstellbare Stromstärken
B88: mit galvanischer Trennung
B89: aktive Strombegrenzung
A91: ESX60D | B91: Sicherungsautomat elektronisch | D91: ESX60D | E91: in Vorbereitung
B92: steckbar
B93: einstellbare Stromstärken
B94: aktive Strombegrenzung

Sheet Read me
A1: Kurzanleitung
A3: Mit dieser Tabellenkalkulation kann ein einzelner DC 24 V Stromkreis (mit 2 Lastzweigen), welcher mit Leitungschutzautomaten,
A4: E-T-A 2210 / 2216 Schutzschaltern oder ESS30 / ESX10 / REF16 / ESS31-T / 2215 / REX12(D)-T / REX22D bestückt wird,
A5: auf seine Auslösebedingungen hin überprüft werden.
A6: Dazu wird ein Kurzschluß direkt an einer Last (worst case / rote Verbindung) vorausgesetzt.
A8: Die Daten der verwendeten Stromversorgung, der Leitungen, der Last, sowie des verwendeten Schutzorgans
A9: können in die weißen Kästchen eingegeben werden.
A11: Am Ende erscheint eine verbale Aussage, ob Selektivität erreicht wird oder welche Auswirkungen zu erwarten sind.
A13: Vorgehensweise:
A15: 1. Eingaben (direkt in die weißen Kästchen im Schaltbild):
A17: Die eingetragenen Werte sind nur Beispiele und können überschrieben werden !
A19: Netzteil: | B19: Nennspannung (Nennwert oder Toleranzwert)
B20: Nennstrom
B21: Überlastfaktor "Boost" (Dauerstrom ohne Einbruch der Nennspannung) in Prozent
B22: Gesamtbelastung durch alle angeschlossenen Verbraucher (realer Wert)
A24: Verdrahtung: | B24: Leitung 1 (z.B. zwischen Netzteil und Schutzelement): Kabellänge (= Hin- und Rückleitung), Querschnitt
B25: Leitung 2 (z.B. zwischen Schutzelement und Unterverteilung): Kabellänge (= Hin- und Rückleitung), Querschnitt
B26: Leitung 3 (z.B. zwischen Unterverteilung und Last1): Kabellänge (= Hin- und Rückleitung), Querschnitt
B27: Leitung 4 (z.B. zwischen Unterverteilung und Last2): Kabellänge (= Hin- und Rückleitung), Querschnitt
A29: Last: | B29: Nennstrom der betrachteten Last 1 & 2
A31: Wird die 2. Last nicht benötigt, wird in die Felder Leitung4 und Last2 der Wert "0" eingetragen!!
A33: Schutzelement: | B33: Auswahl der Kennlinie aus Pull-down-Menue
B34: Nennstrom (Verfügbarkeit wird angezeigt)
B35: Innenwiderstand wird automatisch eingesetzt, kann aber alternativ im weißen Kästchen
B36: überschrieben werden.
A38: 2. Ergebnisse (Anzeige):
A39: o | B39: max. möglicher Kurzschlußstrom des Netzteils
A40: o | B40: max. möglicher zusätzlicher Kurzschlußstrom unter Berücksichtigung der Lasten
A41: o | B41: Leitungswiderstände und Gesamtwiderstand
A42: o | B42: Angabe des Spannungsabfalls auf der Leitung bei Nennstrom
A43: o | B43: magnetische Auslöseschwellen des Schutzelementes
A44: o | B44: tatsächlicher max. möglicher Kurzschlußstrom durch den betrachteten Lastkreis
A45: o | B45: Bewertung der ausgewählten Leitungsquerschnitte im gesicherten Lastpfad
A46: o | B46: Bewertung der Selektivität, des Auslöseverhalten des Schutzelementes und der
B47: Spannung des Netzteiles
A48: o | B48: Bewertung Spannungsversorgung für Schutzorgane Esx
B50: Registerblatt "Kennlinien" enthält alle Tabellen zu den verwendeten Schutzelementen.
B51: Hier kann nichts eingegeben und geändert werden.
A53: Diese Datei dient nur als Planungshilfe!
A54: Für die Strombelastbarkeit der Leitungen, etc. sind die einschlägigen,
A55: international gültigen Normen und Vorschriften zu beachten.
D56: Programmstand: 29.03.2021, APC / Martin Meier
